fUSD/lending_fUSD_20240925
["ID","MTS","AMOUNT","RATE_DAILY","PERIOD"]
[339173874,1727274648781,-833.15,0.00012898,2]
[339173875,1727274648790,-500.0,0.00012898,2]
[339173876,1727274648799,-640.39,0.00012898,2]
[339173877,1727274648809,-500.0,0.00012898,2]
[339173878,1727274648817,-500.0,0.00012898,2]
[339173879,1727274648826,-500.0,0.00012898,2]
[339173880,1727274648835,-500.0,0.00012898,2]
[339173881,1727274648844,-500.0,0.00012898,2]
[339173882,1727274648853,-862.21,0.00012898,2]
[339173883,1727274648862,-248.2,0.00012898,2]
[339173884,1727274648871,-500.0,0.00012898,2]
[339173885,1727274648880,-500.0,0.00012898,2]
[339173886,1727274648890,-500.0,0.00012898,2]
[339173887,1727274648899,-500.0,0.00012898,2]
[339173888,1727274648908,-500.0,0.00012898,2]
[339173889,1727274648917,-500.0,0.00012898,2]
[339173890,1727274648926,-1609.04,0.00012898,2]
[339173891,1727274648935,-500.0,0.00012898,2]
[339173892,1727274648945,-500.0,0.00012898,2]
[339173893,1727274648954,-500.0,0.00012898,2]
[339173894,1727274648963,-500.0,0.00012898,2]
[339173895,1727274648972,-500.0,0.00012898,2]
[339173896,1727274648983,-500.0,0.00012898,2]
[339173897,1727274648992,-500.0,0.00012898,2]
[339173898,1727274649001,-500.0,0.00012898,2]
[339173899,1727274649011,-500.0,0.00012898,2]
[339173900,1727274649021,-844.16,0.00012898,2]
[339173901,1727274649032,-500.0,0.00012898,2]
[339173902,1727274649041,-500.0,0.00012898,2]
[339173903,1727274649050,-500.0,0.00012898,2]
[339173904,1727274649060,-500.0,0.00012898,2]
[339173905,1727274649071,-500.0,0.00012898,2]
[339173906,1727274649080,-310.37700052,0.00012898,2]
[339173907,1727274649089,-500.0,0.00012898,2]
[339173908,1727274649099,-500.0,0.00012898,2]
[339173909,1727274649109,-726.82,0.00012898,2]
[339173910,1727274649117,-707.05,0.00012898,2]
[339173911,1727274649127,-535.55765207,0.00012898,2]
[339173912,1727274649136,-500.0,0.00012898,2]
[339173913,1727274649145,-518.9386661,0.00012898,2]
[339173914,1727274649154,-500.0,0.00012898,2]
[339173915,1727274649163,-500.0,0.00012898,2]
[339173916,1727274649172,-514.28,0.00012898,2]
[339173917,1727274649181,-500.0,0.00012898,2]
[339173918,1727274649191,-500.0,0.00012898,2]
[339173919,1727274649201,-500.0,0.00012898,2]
[339173920,1727274649210,-500.0,0.00012898,2]
[339173921,1727274649219,-500.0,0.00012898,2]
[339173922,1727274649229,-746.97,0.00012898,2]
[339173923,1727274649243,-500.0,0.00012898,2]
[339173924,1727274649252,-500.0,0.00012898,2]
[339173925,1727274649261,-500.0,0.00012898,2]
[339173926,1727274649270,-1163.49,0.00012898,2]
[339173927,1727274649279,-476.4,0.00012898,2]
[339173928,1727274649288,-2130.67,0.00012898,2]
[339173929,1727274649298,-500.0,0.00012898,2]
[339173930,1727274649307,-500.0,0.00012898,2]
[339173931,1727274649317,-1166.24,0.00012898,2]
[339173932,1727274649326,-500.0,0.00012898,2]
[339173933,1727274649335,-2545.78,0.00012898,2]
[339173934,1727274649345,-500.0,0.00012898,2]
[339173935,1727274649354,-500.0,0.00012898,2]
[339173936,1727274649364,-500.0,0.00012898,2]
[339173937,1727274649374,-500.0,0.00012898,2]
[339173938,1727274649384,-500.0,0.00012898,2]
[339173939,1727274649393,-500.0,0.00012898,2]
[339173940,1727274649403,-500.0,0.00012898,2]
[339173941,1727274649412,-500.0,0.00012898,2]
[339173942,1727274649421,-500.0,0.00012898,2]
[339173943,1727274649430,-1198.53,0.00012898,2]
[339173944,1727274649439,-500.0,0.00012898,2]
[339173945,1727274649449,-500.0,0.00012898,2]
[339173946,1727274649458,-500.0,0.00012898,2]
[339173947,1727274649467,-500.0,0.00012898,2]
[339173948,1727274649477,-566.56,0.00012898,2]
[339173949,1727274649487,-1673.81,0.00012898,2]
[339173950,1727274649496,-500.0,0.00012898,2]
[339173951,1727274649506,-500.0,0.00012898,2]
[339173952,1727274649515,-608.21,0.00012898,2]
[339173953,1727274649525,-500.0,0.00012898,2]
[339173954,1727274649534,-500.0,0.00012898,2]
[339173955,1727274649547,-3180.38,0.00012898,2]
[339173956,1727274649556,-500.0,0.00012898,2]
[339173957,1727274649565,-1493.71,0.00012898,2]
[339173958,1727274649574,-500.0,0.00012898,2]
[339173959,1727274649583,-500.0,0.00012898,2]
[339173960,1727274649592,-500.0,0.00012898,2]
[339173961,1727274649602,-414.5,0.00012898,2]
[339173962,1727274649610,-500.0,0.00012898,2]
[339173963,1727274649619,-500.0,0.00012898,2]
[339173964,1727274649628,-312.79576756,0.00012898,2]
[339173965,1727274649637,-2980.3,0.00012898,2]
[339173966,1727274649646,-1350.14,0.00012898,2]
[339173967,1727274649655,-500.0,0.00012898,2]
[339173968,1727274649666,-500.0,0.00012898,2]
[339173969,1727274649676,-500.0,0.00012898,2]
[339173970,1727274649685,-500.0,0.00012898,2]
[339173971,1727274649695,-500.0,0.00012898,2]
[339173972,1727274649705,-500.0,0.00012898,2]
[339173973,1727274649715,-500.0,0.00012898,2]
[339173974,1727274649725,-500.0,0.00012898,2]
[339173975,1727274649735,-262.73702902,0.00012898,2]
[339173976,1727274649745,-500.0,0.00012898,2]
[339173977,1727274649754,-3152.38,0.00012898,2]
[339173978,1727274649764,-500.0,0.00012898,2]
[339173979,1727274649774,-500.0,0.00012898,2]
[339173980,1727274649784,-500.0,0.00012898,2]
[339173981,1727274649795,-500.0,0.00012898,2]
[339173982,1727274649804,-500.0,0.00012898,2]
[339173983,1727274649818,-500.0,0.00012898,2]
[339173984,1727274649827,-557.65,0.00012898,2]
[339173985,1727274649836,-500.0,0.00012898,2]
[339173986,1727274649845,-369.36,0.00012898,2]
[339173987,1727274649855,-500.0,0.00012898,2]
[339173988,1727274649864,-663.23,0.00012898,2]
[339173989,1727274649874,-500.0,0.00012898,2]
[339173990,1727274649887,-500.0,0.00012898,2]
[339173991,1727274649898,-500.0,0.00012898,2]
[339173992,1727274649907,-769.49,0.00012898,2]
[339173993,1727274649917,-500.0,0.00012898,2]
[339173994,1727274649928,-2435.57,0.00012898,2]
[339173995,1727274649937,-538.95,0.00012898,2]
[339173996,1727274649946,-500.0,0.00012898,2]
[339173997,1727274649956,-500.0,0.00012898,2]
[339173998,1727274649965,-2401.66,0.00012898,2]
[339173999,1727274649975,-500.0,0.00012898,2]
[339174000,1727274649986,-304.83,0.00012898,2]
[339174001,1727274649996,-500.0,0.00012898,2]
[339174002,1727274650005,-500.0,0.00012898,2]
[339174003,1727274650015,-500.0,0.00012898,2]
[339174004,1727274650029,-500.0,0.00012898,2]
[339174005,1727274650039,-2458.6,0.00012898,2]
[339174006,1727274650050,-382.26,0.00012898,2]
[339174007,1727274650060,-500.0,0.00012898,2]
[339174008,1727274650070,-627.68,0.00012898,2]
[339174009,1727274650079,-500.0,0.00012898,2]
[339174010,1727274650092,-500.0,0.00012898,2]
[339174011,1727274650102,-500.0,0.00012898,2]
[339174012,1727274650112,-1183.44,0.00012898,2]
[339174013,1727274650122,-500.0,0.00012898,2]
[339174014,1727274650133,-500.0,0.00012898,2]
[339174015,1727274650142,-500.0,0.00012898,2]
[339174016,1727274650152,-594.7,0.00012898,2]
[339174017,1727274650163,-500.0,0.00012898,2]
[339174018,1727274650174,-500.0,0.00012898,2]
[339174019,1727274650184,-500.0,0.00012898,2]
[339174020,1727274650194,-722.89,0.00012898,2]
[339174021,1727274650205,-13519.32,0.00012898,2]
[339174022,1727274650216,-500.0,0.00012898,2]
[339174023,1727274650227,-500.0,0.00012898,2]
[339174024,1727274650238,-500.0,0.00012898,2]
[339174025,1727274650248,-500.0,0.00012898,2]
[339174026,1727274650257,-500.0,0.00012898,2]
[339174027,1727274650267,-500.0,0.00012898,2]
[339174028,1727274650277,-500.0,0.00012898,2]
[339174029,1727274650286,-2644.23,0.00012898,2]
[339174030,1727274650296,-500.0,0.00012898,2]
[339174031,1727274650305,-500.0,0.00012898,2]
[339174032,1727274650315,-500.0,0.00012898,2]
[339174033,1727274650325,-3889.43,0.00012898,2]
[339174034,1727274650334,-500.0,0.00012898,2]
[339174035,1727274650344,-250.88,0.00012898,2]
[339174036,1727274650355,-500.0,0.00012898,2]
[339174037,1727274650364,-500.0,0.00012898,2]
[339174038,1727274650374,-500.0,0.00012898,2]
[339174039,1727274650384,-2128.91,0.00012898,2]
[339174040,1727274650393,-500.0,0.00012898,2]
[339174041,1727274650403,-500.0,0.00012898,2]
[339174042,1727274650412,-500.0,0.00012898,2]
[339174043,1727274650422,-500.0,0.00012898,2]
[339174044,1727274650431,-500.0,0.00012898,2]
[339174045,1727274650441,-500.0,0.00012898,2]
[339174046,1727274650451,-500.0,0.00012898,2]
[339174047,1727274650461,-437.80676757,0.00012898,2]
[339174048,1727274650471,-837.81,0.00012898,2]
[339174049,1727274650481,-837.81,0.00012898,2]
[339174050,1727274650491,-500.0,0.00012898,2]
[339174051,1727274650500,-413.84,0.00012898,2]
[339174052,1727274650510,-500.0,0.00012898,2]
[339174053,1727274650519,-500.0,0.00012898,2]
[339174054,1727274650529,-500.0,0.00012898,2]
[339174055,1727274650539,-245000.0,0.00012899,2]
[339174056,1727274650549,-2183.253,0.00012899,2]
[339174057,1727274650559,-7323.6019,0.00012899,2]
[339174058,1727274650569,-39022.9126,0.00012899,2]
[339174059,1727274650578,-162.14826699,0.00012899,2]
[339174060,1727274650588,-178.74207767,0.00012899,2]
[339174061,1727274650597,-150.0,0.00012899,2]
[339174062,1727274650607,-225.51966307,0.00012899,2]
[339174063,1727274650616,-8833.16322792,0.00012899,2]
[339174064,1727274650635,-500.0,0.00012899,2]
[339174065,1727274650647,-310.00906664,0.00012899,2]
[339174066,1727274650657,-500.0,0.00012899,2]
[339174067,1727274650668,-500.0,0.00012899,2]
[339174068,1727274650678,-150.0,0.00012899,2]
[339174069,1727274650688,-225.51966306,0.000129,2]
[339174070,1727274650698,-8833.1632279,0.000129,2]
[339174071,1727274650709,-3317.74,0.000129,2]
[339174072,1727274650719,-199.1,0.000129,2]
[339174073,1727274650729,-1952.95,0.000129,2]
[339174074,1727274650741,-225.51966306,0.000129,2]
[339174075,1727274650752,-175.88727293,0.000129,2]
[339174076,1727274650762,-175.88727293,0.000129,2]
[339174077,1727274650772,-175.88727293,0.000129,2]
[339174078,1727274650782,-175.88727293,0.000129,2]
[339174079,1727274650793,-176.38,0.000129,2]
[339174080,1727274650802,-175.96227293,0.000129,2]
[339174081,1727274650812,-175.96227293,0.000129,2]
[339174082,1727274650822,-175.96227293,0.000129,2]
[339174083,1727274650832,-175.96227293,0.000129,2]
[339174084,1727274650842,-175.96227293,0.000129,2]
[339174085,1727274650852,-175.96227293,0.000129,2]
[339174086,1727274650862,-175.96227293,0.000129,2]
[339174087,1727274650872,-175.96227293,0.000129,2]
[339174088,1727274650882,-175.96227293,0.000129,2]
[339174089,1727274650892,-175.96227293,0.000129,2]
[339174090,1727274650902,-175.96227293,0.000129,2]
[339174091,1727274650912,-175.96227293,0.000129,2]
[339174092,1727274650922,-175.96227293,0.000129,2]
[339174093,1727274650932,-175.96227293,0.000129,2]
[339174094,1727274650942,-175.96227293,0.000129,2]
[339174095,1727274650952,-175.96227293,0.000129,2]
[339174096,1727274650962,-175.96227293,0.000129,2]
[339174097,1727274650972,-175.96227293,0.000129,2]
[339174098,1727274650984,-175.96227293,0.000129,2]
[339174099,1727274650994,-176.46,0.000129,2]
[339174100,1727274651004,-182.81058423,0.000129,2]
[339174101,1727274651014,-182.81058423,0.000129,2]
[339174102,1727274651026,-182.81058423,0.000129,2]
[339174103,1727274651037,-183.31,0.000129,2]
[339174104,1727274651047,-186.01,0.000129,2]
[339174105,1727274651057,-185.89473398,0.000129,2]
[339174106,1727274651070,-185.89473398,0.000129,2]
[339174107,1727274651081,-185.89473398,0.000129,2]
[339174108,1727274651091,-186.39,0.000129,2]
[339174109,1727274651104,-518.880294,0.000129,2]
[339174110,1727274651115,-8833.1632279,0.000129,2]
[339174111,1727274651126,-16205.87132883,0.000129,2]
[339174112,1727274651137,-336.04748371,0.000129,2]
[339174113,1727274651149,-150.0,0.00012906,2]
[339174114,1727274651159,-150.0,0.00012906,2]
[339174115,1727274651170,-150.0,0.00012907,2]
[339174116,1727274651180,-150.0,0.00012909,2]
[339174117,1727274651190,-386.87063074,0.00012911,2]
[339174118,1727274651200,-150.0,0.00012914,2]
[339174119,1727274651211,-225.12918834,0.00012916,2]
[339174120,1727274651222,-150.0,0.00012917,2]
[339174121,1727274651232,-150.0,0.00012917,2]
[339174122,1727274651241,-150.0,0.00012918,2]
[339174123,1727274651251,-150.0,0.00012918,2]
[339174124,1727274651261,-150.0,0.0001292,2]
[339174125,1727274651272,-152.0,0.00012921,11]
[339174126,1727274651284,-150.0,0.00012922,2]
[339174127,1727274651295,-1126.0,0.00012924,2]
[339174128,1727274651305,-300.0,0.00012927,2]
[339174129,1727274651316,-150.0,0.00012928,2]
[339174130,1727274651326,-150.0,0.00012929,2]
[339174131,1727274651340,-150.0,0.00012931,2]
[339174132,1727274651351,-150.0,0.00012933,2]
[339174133,1727274651362,-150.0,0.00012935,2]
[339174134,1727274651372,-150.0,0.00012936,2]
[339174135,1727274651383,-150.0,0.00012937,2]
[339174136,1727274651393,-150.0,0.00012937,2]
[339174137,1727274651404,-150.0,0.00012941,2]
[339174138,1727274651414,-150.0,0.00012942,2]
[339174139,1727274651424,-150.0,0.00012942,2]
[339174140,1727274651435,-150.0,0.00012944,2]
[339174141,1727274651445,-150.0,0.00012948,2]
[339174142,1727274651455,-150.0,0.00012949,2]
[339174143,1727274651465,-150.0,0.00012949,2]
[339174144,1727274651475,-150.0,0.0001295,2]
[339174145,1727274651489,-150.0,0.00012951,2]
[339174146,1727274651500,-1126.0,0.00012952,2]
[339174147,1727274651510,-150.0,0.00012952,2]
[339174148,1727274651520,-300.0,0.00012952,2]
[339174149,1727274651530,-150.0,0.00012954,2]
[339174150,1727274651542,-150.0,0.00012956,2]
[339174151,1727274651553,-150.0,0.00012959,2]
[339174152,1727274651564,-150.0,0.00012959,2]
[339174153,1727274651575,-150.0,0.0001296,2]
[339174154,1727274651586,-150.0,0.00012961,2]
[339174155,1727274651597,-150.0,0.00012963,2]
[339174156,1727274651608,-150.0,0.00012964,2]
[339174157,1727274651618,-150.0,0.00012964,2]
[339174158,1727274651630,-150.0,0.00012966,2]
[339174159,1727274651640,-150.0,0.00012967,2]
[339174160,1727274651651,-150.0,0.00012971,2]
[339174161,1727274651664,-500.0,0.00012973,2]
[339174162,1727274651675,-201.62551895,0.00012973,2]
[339174163,1727274651686,-160.89007435,0.00012973,2]
[339174164,1727274651697,-500.0,0.00012973,2]
[339174165,1727274651708,-500.0,0.00012973,2]
[339174166,1727274651721,-500.0,0.00012973,2]
[339174167,1727274651732,-196.35677139,0.00012973,2]
[339174168,1727274651742,-500.0,0.00012973,2]
[339174169,1727274651752,-1126.0,0.00012979,2]
[339174170,1727274651762,-150.0,0.0001298,2]
[339174171,1727274651773,-150.0,0.0001298,2]
[339174172,1727274651787,-150.0,0.00012983,2]
[339174173,1727274651796,-150.0,0.00012983,2]
[339174174,1727274651806,-150.0,0.00012986,2]
[339174175,1727274651816,-150.0,0.00012988,2]
[339174176,1727274651826,-386.87063074,0.00012989,2]
[339174177,1727274651836,-150.0,0.0001299,2]
[339174178,1727274651846,-150.0,0.00012991,2]
[339174179,1727274651856,-150.0,0.00012993,2]
[339174180,1727274651866,-150.0,0.00012995,2]
[339174181,1727274651876,-500.0,0.00012996,2]
[339174182,1727274651886,-500.0,0.00012996,2]
[339174183,1727274651896,-837.81,0.00012996,2]
[339174184,1727274651906,-500.0,0.00012996,2]
[339174185,1727274651916,-500.0,0.00012997,2]
[339174186,1727274651927,-150.0,0.00012997,2]
[339174187,1727274651937,-4400.86,0.00012997,2]
[339174188,1727274651949,-500.0,0.00012997,2]
[339174189,1727274651960,-337.57,0.00012997,2]
[339174190,1727274651970,-929.9,0.00012997,2]
[339174191,1727274651980,-500.0,0.00012997,2]
[339174192,1727274651991,-766.85,0.00012997,2]
[339174193,1727274652001,-500.0,0.00012997,2]
[339174194,1727274652010,-862.21,0.00012997,2]
[339174195,1727274652023,-500.0,0.00012997,2]
[339174196,1727274652037,-230.60888381,0.00012997,2]
[339174197,1727274652047,-449.81,0.00012997,2]
[339174198,1727274652057,-500.0,0.00012997,2]
[339174199,1727274652067,-500.0,0.00012997,2]
[339174200,1727274652076,-500.0,0.00012997,2]
[339174201,1727274652086,-500.0,0.00012997,2]
[339174202,1727274652096,-500.0,0.00012997,2]
[339174203,1727274652106,-500.0,0.00012997,2]
[339174204,1727274652116,-500.0,0.00012997,2]
[339174205,1727274652126,-500.0,0.00012997,2]
[339174206,1727274652136,-500.0,0.00012997,2]
[339174207,1727274652146,-500.0,0.00012997,2]
[339174208,1727274652156,-500.0,0.00012997,2]
[339174209,1727274652166,-500.0,0.00012997,2]
[339174210,1727274652176,-500.0,0.00012997,2]
[339174211,1727274652187,-726.82,0.00012997,2]
[339174212,1727274652409,-707.05,0.00012997,2]
[339174213,1727274652420,-500.0,0.00012997,2]
[339174214,1727274652429,-500.0,0.00012997,2]
[339174215,1727274652438,-500.0,0.00012997,2]
[339174216,1727274652448,-1166.24,0.00012997,2]
[339174217,1727274652458,-500.0,0.00012997,2]
[339174218,1727274652467,-567.02,0.00012997,2]
[339174219,1727274652476,-500.0,0.00012997,2]
[339174220,1727274652490,-500.0,0.00012997,2]
[339174221,1727274652499,-566.56,0.00012997,2]
[339174222,1727274652516,-1673.81,0.00012997,2]
[339174223,1727274652526,-500.0,0.00012997,2]
[339174224,1727274652535,-500.0,0.00012997,2]
[339174225,1727274652544,-3180.38,0.00012997,2]
[339174226,1727274652554,-500.0,0.00012997,2]
[339174227,1727274652564,-500.0,0.00012997,2]
[339174228,1727274652573,-1493.71,0.00012997,2]
[339174229,1727274652583,-500.0,0.00012997,2]
[339174230,1727274652592,-500.0,0.00012997,2]
[339174231,1727274652601,-2980.3,0.00012997,2]
[339174232,1727274652611,-2980.3,0.00012997,2]
[339174233,1727274652620,-1350.14,0.00012997,2]
[339174234,1727274652630,-500.0,0.00012997,2]
[339174235,1727274652639,-500.0,0.00012997,2]
[339174236,1727274652648,-295.02,0.00012997,2]
[339174237,1727274652657,-500.0,0.00012997,2]
[339174238,1727274652667,-500.0,0.00012997,2]
[339174239,1727274652676,-500.0,0.00012997,2]
[339174240,1727274652685,-3152.38,0.00012997,2]
[339174241,1727274652694,-3152.38,0.00012997,2]
[339174242,1727274652703,-500.0,0.00012997,2]
[339174243,1727274652713,-500.0,0.00012997,2]
[339174244,1727274652722,-500.0,0.00012997,2]
[339174245,1727274652731,-438.36,0.00012997,2]
[339174246,1727274652747,-557.65,0.00012997,2]
[339174247,1727274652756,-500.0,0.00012997,2]
[339174248,1727274652766,-663.23,0.00012997,2]
[339174249,1727274652775,-500.0,0.00012997,2]
[339174250,1727274652785,-500.0,0.00012997,2]
[339174251,1727274652794,-500.0,0.00012997,2]
[339174252,1727274652803,-500.0,0.00012997,2]
[339174253,1727274652813,-500.0,0.00012997,2]
[339174254,1727274652822,-500.0,0.00012997,2]
[339174255,1727274652832,-2435.57,0.00012997,2]
[339174256,1727274652841,-538.95,0.00012997,2]
[339174257,1727274652850,-538.95,0.00012997,2]
[339174258,1727274652860,-538.95,0.00012997,2]
[339174259,1727274652869,-2401.66,0.00012997,2]
[339174260,1727274652879,-500.0,0.00012997,2]
[339174261,1727274652888,-500.0,0.00012997,2]
[339174262,1727274652898,-500.0,0.00012997,2]
[339174263,1727274652907,-590.22084255,0.00012997,2]
[339174264,1727274652917,-500.0,0.00012997,2]
[339174265,1727274652926,-500.0,0.00012997,2]
[339174266,1727274652936,-500.0,0.00012997,2]
[339174267,1727274652946,-2458.6,0.00012997,2]
[339174268,1727274652955,-500.0,0.00012997,2]
[339174269,1727274652965,-500.0,0.00012997,2]
[339174270,1727274652975,-500.0,0.00012997,2]
[339174271,1727274652988,-500.0,0.00012997,2]
[339174272,1727274652997,-1183.44,0.00012997,2]
[339174273,1727274653006,-500.0,0.00012997,2]
[339174274,1727274653016,-500.0,0.00012997,2]
[339174275,1727274653030,-500.0,0.00012997,2]
[339174276,1727274653039,-594.7,0.00012997,2]
[339174277,1727274653049,-594.7,0.00012997,2]
[339174278,1727274653061,-594.7,0.00012997,2]
[339174279,1727274653074,-500.0,0.00012997,2]
[339174280,1727274653083,-500.0,0.00012997,2]
[339174281,1727274653093,-722.89,0.00012997,2]
[339174282,1727274653104,-722.89,0.00012997,2]
[339174283,1727274653114,-13519.32,0.00012997,2]
[339174284,1727274653123,-13519.32,0.00012997,2]
[339174285,1727274653133,-13519.32,0.00012997,2]
[339174286,1727274653143,-500.0,0.00012997,2]
[339174287,1727274653153,-500.0,0.00012997,2]
[339174288,1727274653162,-500.0,0.00012997,2]
[339174289,1727274653172,-500.0,0.00012997,2]
[339174290,1727274653182,-186.49,0.00012997,2]
[339174291,1727274653191,-500.0,0.00012997,2]
[339174292,1727274653201,-500.0,0.00012997,2]
[339174293,1727274653210,-2644.23,0.00012997,2]
[339174294,1727274653220,-3889.43,0.00012997,2]
[339174295,1727274653230,-3889.43,0.00012997,2]
[339174296,1727274653248,-2128.91,0.00012997,2]
[339174297,1727274653262,-2128.91,0.00012997,2]
[339174298,1727274653272,-500.0,0.00012997,2]
[339174299,1727274653281,-419.76878939,0.00012997,2]
[339174300,1727274653291,-500.0,0.00012997,2]
[339174301,1727274653300,-196.29635873,0.00012997,2]
[339174302,1727274653310,-500.0,0.00012997,2]
[339174303,1727274653320,-500.0,0.00012997,2]
[339174304,1727274653329,-500.0,0.00012997,2]
[339174305,1727274653339,-500.0,0.00012997,2]
[339174306,1727274653349,-837.81,0.00012997,2]
[339174307,1727274653358,-837.81,0.00012997,2]
[339174308,1727274653368,-500.0,0.00012997,2]
[339174309,1727274653377,-500.0,0.00012997,2]
[339174310,1727274653387,-512.0,0.00012998,2]
[339174311,1727274653397,-500.0,0.00012998,2]
[339174312,1727274653406,-620.21,0.00012998,2]
[339174313,1727274653416,-429.41,0.00012998,2]
[339174314,1727274653426,-500.0,0.00012998,2]
[339174315,1727274653435,-301.08,0.00012998,2]
[339174316,1727274653445,-769.16,0.00012998,2]
[339174317,1727274653454,-500.0,0.00012998,2]
[339174318,1727274653463,-574.14,0.00012998,2]
[339174319,1727274653473,-500.0,0.00012998,2]
[339174320,1727274653482,-500.0,0.00012998,2]
[339174321,1727274653496,-500.0,0.00012998,2]
[339174322,1727274653506,-150.0,0.00012998,2]
[339174323,1727274653515,-500.0,0.00012998,2]
[339174324,1727274653525,-500.0,0.00012998,2]
[339174325,1727274653535,-500.0,0.00012998,2]
[339174326,1727274653544,-500.0,0.00012998,2]
[339174327,1727274653553,-500.0,0.00012998,2]
[339174328,1727274653562,-500.0,0.00012998,2]
[339174329,1727274653572,-500.0,0.00012998,2]
[339174330,1727274653581,-500.0,0.00012998,2]
[339174331,1727274653590,-586.12742373,0.00012998,2]
[339174332,1727274653600,-4400.86,0.00012998,2]
[339174333,1727274653609,-4400.86,0.00012998,2]
[339174334,1727274653619,-4400.86,0.00012998,2]
[339174335,1727274653630,-4400.86,0.00012998,2]
[339174336,1727274653641,-4400.86,0.00012998,2]
[339174337,1727274653651,-4400.86,0.00012998,2]
[339174338,1727274653661,-4400.86,0.00012998,2]
[339174339,1727274653671,-4400.86,0.00012998,2]
[339174340,1727274653681,-4400.86,0.00012998,2]
[339174341,1727274653690,-500.0,0.00012998,2]
[339174342,1727274653700,-525.28025164,0.00012998,2]
[339174343,1727274653709,-500.0,0.00012998,2]
[339174344,1727274653719,-500.0,0.00012998,2]
[339174345,1727274653730,-500.0,0.00012998,2]
[339174346,1727274653749,-500.0,0.00012998,2]
[339174347,1727274653758,-500.0,0.00012998,2]
[339174348,1727274653767,-760.11,0.00012998,2]
[339174349,1727274653777,-760.11,0.00012998,2]
[339174350,1727274653786,-500.0,0.00012998,2]
[339174351,1727274653796,-500.0,0.00012998,2]
[339174352,1727274653805,-500.0,0.00012998,2]
[339174353,1727274653814,-500.0,0.00012998,2]
[339174354,1727274653823,-500.0,0.00012998,2]
[339174355,1727274653833,-500.0,0.00012998,2]
[339174356,1727274653843,-500.0,0.00012998,2]
[339174357,1727274653852,-500.0,0.00012998,2]
[339174358,1727274653862,-500.0,0.00012998,2]
[339174359,1727274653871,-500.0,0.00012998,2]
[339174360,1727274653881,-500.0,0.00012998,2]
[339174361,1727274653891,-929.9,0.00012998,2]
[339174362,1727274653901,-500.0,0.00012998,2]
[339174363,1727274653910,-929.9,0.00012998,2]
[339174364,1727274653920,-327.99645763,0.00012998,2]
[339174365,1727274653929,-929.9,0.00012998,2]
[339174366,1727274653939,-929.9,0.00012998,2]
[339174367,1727274653948,-929.9,0.00012998,2]
[339174368,1727274653958,-929.9,0.00012998,2]
[339174369,1727274653967,-929.9,0.00012998,2]
[339174370,1727274653977,-929.9,0.00012998,2]
[339174371,1727274653991,-929.9,0.00012998,2]
[339174372,1727274654000,-1739.25,0.00012998,2]
[339174373,1727274654009,-1739.25,0.00012998,2]